Cogmind - Beta 14 @@@ ROGUE MODE // 2024.10.31 @ 17:19:32 Player: weedlord420 Result: Destroyed by Autobeam Turret with Autobeam Performance ------------- Evolutions (0) 0 Regions Visited (2) 400 Robots Destroyed (41) 205 Value Destroyed (930) 930 Prototype IDs (0) 0 Alien Tech Used (0) 0 Bonus (-66) -66 TOTAL SCORE: 1469 Bonus ------- Friendly Fire -66 Cogmind --------- Core Integrity 0/250 Matter 290/300 Energy 40/100 System Corruption 0% Temperature Cool (12) Movement Rolling (120) Ox1 Location -10/Subcaves Parts ------- > --- POWER (1) -------- (None) > --- PROPULSION (2) --- Myomer Leg Subdweller Monowheel > --- UTILITY (2) ------ Large Storage Unit Makeshift Light Armor Plating > --- WEAPON (2) ------- Subdweller Beam Cannon Subdweller Shrapnel Launcher > --- INVENTORY (15) --- Subdweller Power Source Wheel Wheel Improved Heat Sink Large Storage Unit Machine Analyzer Sensor Array Light Armor Plating Scrap Shield Beamcaster Subdweller Machine Gun Slug Cannon Bore Cannon Scrap Shield Fragment (49) Peak State ------------ > --- POWER ------------ Light Ion Engine > --- PROPULSION ------- Myomer Leg Subdweller Monowheel > --- UTILITY ---------- Large Storage Unit Makeshift Light Armor Plating > --- WEAPON ----------- Beamcaster Subdweller Machine Gun > --- INVENTORY -------- Wheel Wheel Improved Heat Sink Large Storage Unit Machine Analyzer Sensor Array Light Armor Plating Scrap Shield Tractor Beam Subdweller Beam Cannon Slug Cannon Bore Cannon Subdweller Shrapnel Launcher Scrap Shield Fragment [Rating: 25] Favorites ----------- Power Ion Engine Engine Ion Engine Propulsion Wheel Leg Myomer Leg Wheel Wheel Utility Large Storage Unit Storage Large Storage Unit Protection Light Armor Plating Weapon Assault Rifle Energy Gun Beamcaster Energy Cannon Beam Cannon Ballistic Gun Assault Rifle Ballistic Cannon Bore Cannon Launcher Grenade Launcher Build | -11 -10 -10 ------- Run | Yrd Mat Sub Slots Evolved . | . . . Power . | . . . Propulsion . | . . . Utility . | . . . Weapon . | . . . Parts Attached 36 | 6 10 20 Power 2 | 1 . 1 Engine 2 | 1 . 1 Core . | . . . Reactor . | . . . Propulsion 7 | 2 2 3 Treads . | . . . Leg 1 | . . 1 Wheel 6 | 2 2 2 Hover . | . . . Flight . | . . . Utility 5 | 1 2 2 Device . | . . . Storage 2 | 1 1 . Processor . | . . . Hackware . | . . . Protection 3 | . 1 2 Artifact . | . . . Weapon 22 | 2 6 14 Energy Gun 2 | 1 . 1 Energy Cannon 3 | . 1 2 Ballistic Gun 9 | 1 3 5 Ballistic Cannon 1 | . . 1 Launcher 7 | . 2 5 Special Weapon . | . . . Impact Weapon . | . . . Slashing Weapon . | . . . Piercing Weapon . | . . . Special Melee Weapon . | . . . Unidentified Prototypes . | . . . Parts Lost 4 | . . 4 Power 2 | . . 2 Propulsion 1 | . . 1 Utility 1 | . . 1 Weapon . | . . . Highest Loss Streak 2 | . . 2 To Critical Strikes 1 | . . 1 Average Slot Usage (%) 95 | . 91 99 Engine 13 | . 14 13 Leg 4 | . . 9 Wheel 23 | . 28 18 Storage 14 | . 14 14 Protection 10 | . 6 14 Energy Gun 6 | . 4 8 Energy Cannon 6 | . 7 5 Ballistic Gun 13 | . 13 13 Launcher 1 | . 1 1 Peak Build Rating 25 | 6 8 25 Average Rating 12 | 2 7 18 On Entrance 4 | . 6 8 Naked Turns . | . . . Heaviest Build 43 | 14 33 43 Greatest Support 25 | 20 20 25 Greatest Overweight (x) 3 | 2 1 3 Average Overweight (x) . | . . 1 Largest Inventory Capacity 15 | 8 15 15 Average Capacity 12 | 6 10 15 Most Carried 15 | 5 13 15 Average Carried 10 | 2 7 14 Final Capacity 15 | 8 15 15 Final Carried 15 | 1 12 15 Class Distribution -------------------- 100% | Mutant Dominant Class ---------------- Mutant | -10/Materials Mutant | -10/Subcaves Resources | -11 -10 -10 ----------- Run | Yrd Mat Sub Matter Collected 871 | 256 211 404 Remotely . | . . . Salvage Created 1089 | . 416 673 Parts 79 | . 38 41 Haulers Intercepted 2 | . 2 . Recyclers Shooed . | . . . Parts Field Recycled . | . . . Retrieved Matter . | . . . Parts Self-Destructed 7 | . . 7 Prevented . | . . . Kills | -11 -10 -10 ------- Run | Yrd Mat Sub Combat Hostiles Destroyed 31 | . 12 19 Guns 10 | . 5 5 Cannons 6 | . 1 5 AOE 15 | . 6 9 Classes Destroyed 9 | . 7 2 Worker 3 | . 3 . Hauler 2 | . 2 . Mechanic 1 | . 1 . Operator 2 | . 2 . Watcher 2 | . 2 . Swarmer 12 | . 9 3 Grunt 3 | . 3 . Cobbler 1 | . . 1 Subdweller 16 | . . 16 Best Kill Streak 9 | . 6 9 Combat Bots Only 9 | . 6 9 Max Kills in Single Turn 4 | . 4 2 Gunslinging . | . . . Exploded 4 | . 4 2 Melee . | . . . Uniques/NPCs Destroyed . | . . . Combat | -11 -10 -10 -------- Run | Yrd Mat Sub Hostile Shots Fired 115 | . 47 68 Missed 39 | . 16 23 Damage Taken 1165 | . 313 852 Core 255 | . 44 211 Absorbed by Shields . | . . . Regen/Repaired (Parts) 82 | . 82 . Core Remaining (%) 100 | 100 . . Volleys Fired 86 | . 46 40 Largest 2 | . 2 2 Hottest 110 | . 80 110 Shots Fired 166 | . 91 75 Gun 111 | . 61 50 Cannon 44 | . 26 18 Launcher 11 | . 4 7 Special . | . . . Kinetic 77 | . 45 32 Thermal 80 | . 42 38 Explosive 9 | . 4 5 Electromagnetic . | . . . Robot Hit Streak 12 | . 10 12 Robot Miss Streak 3 | . 3 2 Penetration Max . | . . . Secondary Targets 1 | . . 1 Max Gunslinging Chain 1 | . . 1 Shots Hit Robots 108 | . 57 51 Core Hits 64 | . 31 33 Critical Kills . | . . . Critical Parts Destroyed . | . . . Critical Strikes 1 | . 1 . Burn 1 | . 1 . Melee Attacks . | . . . Impact . | . . . Slashing . | . . . Piercing . | . . . Sneak Attacks . | . . . Combat Hostiles . | . . . Follow-up Attacks . | . . . Damage Inflicted 3212 | . 1072 2140 Guns 1117 | . 476 641 Cannons 641 | . 315 326 Explosions 1454 | . 281 1173 Melee . | . . . Ramming . | . . . Kinetic 698 | . 351 347 Thermal 1060 | . 440 620 Explosive 1454 | . 281 1173 Electromagnetic . | . . . Impact . | . . . Slashing . | . . . Piercing . | . . . Highest Corruption . | . . . Average Corruption . | . . . Corruption Purged . | . . . Corruption Blocked . | . . . Overload Shots . | . . . Overflow Damage 12 | . . 12 Projectiles . | . . . Explosions 12 | . . 12 Melee . | . . . Knockbacks . | . . . Impact . | . . . Kinetic . | . . . Secondary . | . . . Self-Inflicted Damage 1 | . . 1 Shots 1 | . . 1 Rammed . | . . . Targets Rammed . | . . . Kicked . | . . . Crushed . | . . . Highest Temperature 258 | . 258 6 Average Temperature 54 | . 61 3 Received Heat Transfer 234 | . 114 120 Effects 1 | . 1 . Interference 1 | . 1 . Siege Activations . | . . . Robots Corrupted . | . . . Combat Hostiles . | . . . Parts Fried . | . . . Impact Corruptions . | . . . Robots Melted . | . . . Combat Hostiles . | . . . Parts Melted 3 | . 2 1 Heat Transferred 2146 | . 1110 1036 Parts Sabotaged . | . . . Parts Stolen . | . . . Parts Stripped . | . . . Power Chain Reactions . | . . . Alert | -11 -10 -10 ------- Run | Yrd Mat Sub Peak Influence 261 | . 261 . Initial . | . . . Average 59 | . 62 . Maximum Alert Level 1 | . 1 . Low Security (%) 96 | 100 96 . Level 1 3 | . 3 . Level 2 . | . . . Level 3 . | . . . Level 4 . | . . . Level 5 . | . . . High Security . | . . . Max Security . | . . . Squads Dispatched 3 | . 3 . Investigation 1 | . 1 . Extermination . | . . . Reinforcement 2 | . 2 . Assault . | . . . Garrison . | . . . Intercept . | . . . Searches Triggered . | . . . Construction Impeded . | . . . Haulers Reinforced . | . . . Active Scanning Responses . | . . . Cargo Convoy Interrupts . | . . . Stealth | -11 -10 -10 --------- Run | Yrd Mat Sub Distress Signals . | . . . Communications Jammed . | . . . Distress Signals . | . . . Times Spotted 47 | . 18 29 Peak Tracking Total 7 | . 4 7 Tactical Retreats 3 | . 1 2 Traps | -11 -10 -10 ------- Run | Yrd Mat Sub Traps Triggered 2 | . 1 1 Indirectly . | . . . Trap Hack Attempts . | . . . Triggered . | . . . Disarmed . | . . . Reprogrammed . | . . . Reused . | . . . Traps Extracted . | . . . Installed . | . . . Triggered . | . . . Machines | -11 -10 -10 ---------- Run | Yrd Mat Sub Machines Disabled . | . . . Max in Single Turn . | . . . Machines Repaired . | . . . Machines Dismantled . | . . . Machines Sabotaged . | . . . Overloaded Fab Kills . | . . . Hacking | -11 -10 -10 --------- Run | Yrd Mat Sub Machines Accessed 6 | . 6 . Terminals 5 | . 5 . Fabricators . | . . . Repair Stations 1 | . 1 . Recycling Units . | . . . Scanalyzers . | . . . Garrison Access . | . . . Total Hacks 16 | . 16 . Successful 8 | . 8 . Failed 8 | . 8 . Catastrophic . | . . . Database Lockouts . | . . . Manual 10 | . 10 . Terminals 14 | . 14 . Fabricators . | . . . Repair Stations 2 | . 2 . Recycling Units . | . . . Scanalyzers . | . . . Garrison Access . | . . . Terminal Hacks 2 | . 2 . Terminal Index 1 | . 1 . Unreport Threat 1 | . 1 . Fabricator Hacks . | . . . Repair Station Hacks 2 | . 2 . Scan Component 1 | . 1 . Repair 1 | . 1 . Recycling Unit Hacks . | . . . Scanalyzer . | . . . Garrison Access Hacks . | . . . Unauthorized Hacks 4 | . 4 . Terminals 4 | . 4 . Assimilate 2 | . 2 . Botnet 1 | . 1 . Operators 1 | . 1 . Fabricators . | . . . Repair Stations . | . . . Recycling Units . | . . . Scanalyzers . | . . . Garrison Access . | . . . Data Cores Recovered . | . . . Used . | . . . Hacking Detections 6 | . 6 . Full Trace Events . | . . . Feedback Events . | . . . Feedback Blocked . | . . . Robot Schematics Acquired . | . . . Robots Built . | . . . Authchips . | . . . Time . | . . . Total Robot Build Rating . | . . . Part Schematics Acquired . | . . . Parts Built . | . . . Authchips . | . . . Time . | . . . Total Part Build Rating . | . . . Parts Repaired 1 | . 1 . Time 26 | . 26 . Parts Recycled . | . . . Recycled Matter . | . . . Retrieved Matter . | . . . Retrieved Components . | . . . Parts Scanalyzed . | . . . Part Schematics Acquired . | . . . Parts Damaged . | . . . Bothacking | -11 -10 -10 ------------ Run | Yrd Mat Sub Used RIF Installer . | . . . Robots Hacked . | . . . Non-combat . | . . . Combat . | . . . Robot Hacks Applied . | . . . Relay Couplers Released . | . . . Fabnet Peak Effective % . | . . . Robots Rewired . | . . . Allies Hacked . | . . . Hacks Repelled . | . . . Allies | -11 -10 -10 -------- Run | Yrd Mat Sub Total Allies 1 | . 1 . Largest Group 1 | . 1 . Highest-Rated Group 10 | . 10 . Highest-Rated Ally 10 | . 10 . Total Orders . | . . . Ally Attacks . | . . . Total Damage . | . . . Kills . | . . . Allies Corrupted . | . . . Allies Melted . | . . . Intel | -11 -10 -10 ------- Run | Yrd Mat Sub Robot Analysis Total . | . . . Derelict Logs Recovered . | . . . Drone Launches . | . . . Drone Recoveries . | . . . Exploration | -11 -10 -10 ------------- Run | Yrd Mat Sub Turns Passed 1705 | 36 868 801 Spaces Moved 1276 | 33 702 541 Core 17 | 17 . . Treads . | . . . Legs 4 | . . 4 Wheels 1255 | 16 702 537 Hover . | . . . Flight . | . . . Fastest Speed 50 | 50 80 95 Average Speed 96 | 73 85 111 Slowest Speed 190 | 150 95 190 Overloaded Moves . | . . . Propulsion Burnouts . | . . . Robots Hopped . | . . . Cave-ins Triggered . | . . . Exploration Rate (%) 38 | 3 85 26 Regions Visited 2 Branch Regions 1 Pre-discovered Areas . | . . . Known Exits Taken . | . . . Unknown Exits Taken 2 | 1 1 . Scrap Searched 5 | . . 5 Spaces Dug . | . . . Terrain Destroyed 75 | . 29 46 Melee . | . . . Projectile 1 | . . 1 AOE 74 | . 29 45 Terrain Rammed . | . . . Walls Destroyed . | . . . Machines Disabled . | . . . Actions | -11 -10 -10 --------- Run | Yrd Mat Sub Total 1583 | 43 878 662 Wait 140 | . 100 40 Move 1274 | 32 701 541 Hop . | . . . Pick Up 33 | 5 16 12 Fast Attach 2 | 2 . . Attach 9 | 4 2 3 Detach . | . . . Swap 25 | . 8 17 Drop 14 | . 5 9 Fire 86 | . 46 40 Melee . | . . . Ram . | . . . Kick . | . . . Crush . | . . . Escape Stasis . | . . . Rewire . | . . . Trap . | . . . Miscellaneous . | . . . Route ------- -11/Scrapyard -10/Materials (discovered 6 exits: [*Mat x3] / [*Min x2] / [*Sub]) -10/Subcaves (discovered 1 exit: [*Rec]) History --------- Turn | Location | Event 16 | -11/Scrapyard | Discovered new exit (range 15) 37 | -11/Scrapyard | Entered Materials 311 | -10/Materials | Build established: Mutant 330 | -10/Materials | Discovered new exit (range 13) 520 | -10/Materials | Discovered new exit (range 8) 725 | -10/Materials | Discovered new exit (range 8) 733 | -10/Materials | Discovered new exit (range 16) 775 | -10/Materials | Repaired Assault Rifle 815 | -10/Materials | Discovered new exit (range 15) 901 | -10/Materials | Discovered new exit (range 4) 905 | -10/Materials | Entered Subcaves 978 | -10/Subcaves | A swath of the cavern ceiling suddenly collapsed 1025 | -10/Subcaves | Ambushed by swarm of Subdwellers 1025 | -10/Subcaves | Ambushed by Subdwellers from Twisted Machinery 1025 | -10/Subcaves | Ambushed by Subdwellers from Twisted Machinery 1025 | -10/Subcaves | Ambushed by Subdwellers from Twisted Machinery 1027 | -10/Subcaves | Ambushed by Subdwellers from Twisted Machinery 1030 | -10/Subcaves | Ambushed by Subdwellers from Twisted Machinery 1038 | -10/Subcaves | Core integrity fell below 50% 1063 | -10/Subcaves | Destroyed 9 combat bots 1143 | -10/Subcaves | A swath of the cavern ceiling suddenly collapsed 1166 | -10/Subcaves | Ambushed by Subdwellers from Twisted Machinery 1564 | -10/Subcaves | Ambushed by Subdweller buried in earth 1571 | -10/Subcaves | Core integrity fell below 20% 1698 | -10/Subcaves | Discovered new exit (range 15) 1706 | -10/Subcaves | Destroyed by Autobeam Turret with Autobeam Last Messages --------------- 01510_ JW-XKG(R): "SUBMAD!" 01534_ JW-XKG(R) destroyed. 01543_ Acquired 2 matter. 01544_ Dropped Tractor Beam. 01546_ Acquired Sub. Power Source. 01565_ W3-50V(R): "ARGHSUB!" 01566_ Acquired 13 matter. 01573_ W3-50V(R) destroyed. 01582_ Acquired 31 matter. 01621_ Triggered Piercing Trap. 01621_ Spikes shoot up from the floor. 01621_ Critical hit (Impale). 01638_ M2-7Z6(R) destroyed. 01646_ GI-UKM(R) destroyed. 01651_ Acquired 46 matter. 01691_ S-10 Pest destroyed. 01695_ Acquired 2 matter. 01698_ Flight Unit fries itself beyond repair. 01698_ EXIT=FOUND 01698_ Lgt. Ion Engine destroyed. Map ----- +----------------------------------------------------+ | "" ##??????????????????????????????????????????? | | """ #??????????????????????????????????????????? | | "" ## #??????????????????????????????????????????? | | " ###??????????????????????????????????????????? | | # ###????????? ##?????????????????????????????? | | # # ##?????? ????????????????????????????? | | # ##??? ????????????????????????????? | | # # ### #?????????????????????????????? | | ## ### #??????????????????????????????? | | ! #??????????????????????????????? | | #? ??????????????????????????? | | # ## #### ??????????????????????????? | | #### #???? ?????????????????????????? | | ???# #???? ?????????????????????????? | | ???# #???? ?????????????????????????? | | ???# #???? ?????????????????????????? | | ???# #?????### ?????????????????????????? | | ##### ##???????? #????????????????????????? | | " #?######???###???? ###????? #??????????????? | | " #?#####???""" ?### "##??? #??????????????? | | ""### ##??" # ; "##? #???????????????? | | "" #??" ;;; # #???????????????? | | ""# #?#""t % / % # ###?????????????? | | ## ##< !s= " #?????????????? | | ## #?""t % !; """" ????????????????? | | *[## ##" ;;;;;;;@ #" "" ???????????????? | | !=## #?#" ###### ##????????????????????? | | &%# #??"???????### "#????????????????????? | | ![%! ##?????????# "#????????????????????? | | ! ########### ##????????????????????? | | " "##?????????????????????? | | ###??????????????????????? | | ### ##????????????????????????? | | ## ####?## ##?????????????????????????? | | ## #### #????# #?????????????????????????? | | ####??## #????## #?????????????????????????? | | # #??????###?????# ##?????????????????????????? | | ## #?????????????? #??????????????????????????? | | ?## #????????????? ??????????????????????????? | | ??###????????????? ??????????????????????????? | | ?????????????????## ### ?????????????????????????? | | ??????????????????##??? ?????????????????????????? | | ??????????????????????? ?????????????????????????? | | ???????????????????????? ????????????????????????? | | ???????????????????????? ????????????????????????? | | ?????????????????????????????????????????????????? | | ?????????????????????????????????????????????????? | | ?????????????????????????????????????????????????? | | ?????????????????????????????????????????????????? | | ?????????????????????????????????????????????????? | +----------------------------------------------------+ Best States ------------- Heat Dissipation 25 Energy Generation 10 Energy Capacity 250 Matter Stores 300 Matter Capacity 300 Sight Range 16 Terrain Scan Density 10 Armor Coverage 150 Evasion (%) 50 Item Schematics ----------------- None Robot Schematics ------------------ None Fabricated ------------ Nothing Alien Tech Used ----------------- None Achievements -------------- None Challenges ------------ None Game ------ Seed ScanGodImmobilizer Manual? 0 Play Time 00:16:42 Cumulative 86.2 hours Start 2024.10.31 @ 17:04:39 End 2024.10.31 @ 17:19:32 Sessions 1 Manual Loads 0 Difficulty Rogue Special Mode None Game No. 142 Rogue 141 Adventurer 1 Explorer 0 Win Type - Total 0 Types 0/0/0/0/0/0/0/0/0 Lore% 50 Gallery% 52 Achievement% 44 Wizard Run 0 Options --------- Layout 1 ASCII 0 Keyboard 0 Movement Mouse Keybinds 0 Fullscreen 2 Font 24/Terminus Map View 50x35 Zoom Use 0% Tactical HUD 1 Map Filters NONE Filters NONE Steam 1 RUN: 79234c0e-49b6-4688-beb1-f41a64b15b43